bitfinex/quotes_ETHUSD_20240730
["timestamp","ask_amount","ask_price","bid_price","bid_amount"]
[1722367364796,3.05376,3274.7,3274.1,3.05425]
[1722367365033,3.05376,3274.7,3274.1,6.10846]
[1722367365179,3.05376,3274.7,3274.0,0.610883]
[1722367365180,3.05376,3274.7,3274.2,3.05416]
[1722367365381,10.44358,3274.9,3274.3,3.05407]
[1722367365619,10.44358,3274.9,3274.0,0.610883]
[1722367365620,7.39,3274.9,3274.0,0.610883]
[1722367365797,5.33395,3275.6,3274.8,3.05355]
[1722367366021,3.05295,3275.6,3275.0,3.05334]
[1722367366221,3.05288,3275.6,3274.8,3.05356]
[1722367366514,3.05288,3275.6,3275.0,3.05341]
[1722367366691,3.05274,3275.8,3275.0,3.05341]
[1722367366905,3.05274,3275.8,3275.1,3.05325]
[1722367367219,3.05289,3275.6,3275.0,3.05341]
[1722367367579,0.03921312,3275.5,3275.0,3.05341]
[1722367367906,0.03921312,3275.5,3275.0,3.69525533]
[1722367368318,3.09218312,3275.5,3275.0,3.69525533]
[1722367368633,0.03921312,3275.5,3275.0,3.69525533]
[1722367368811,0.03921312,3275.5,3275.0,0.64184533]
[1722367369128,6.10585,3275.6,3274.3,5.63206]
[1722367369333,0.03919823,3275.5,3274.9,3.0535]
[1722367369545,0.03919823,3275.5,3275.0,3.05338]
[1722367370256,0.03919823,3275.5,3274.9,3.0535]
[1722367370458,0.03919823,3275.5,3275.0,3.05337]
[1722367370689,0.03919823,3275.5,3275.2,3.05316]
[1722367370960,0.03915362,3275.4,3275.2,3.05316]
[1722367371256,3.05266,3275.9,3275.2,3.05316]
[1722367371403,0.03909412,3275.3,3275.2,3.05316]
[1722367371598,3.05279,3275.7,3275.0,3.05334]
[1722367371805,0.03927262,3275.6,3275.1,3.05333]
[1722367372450,0.03927262,3275.6,3275.1,3.05328]
[1722367372745,0.03921312,3275.5,3275.2,3.05318]
[1722367372935,3.0,3275.8,3275.2,3.05318]
[1722367373273,0.03933211,3275.7,3275.2,6.10635]
[1722367373575,0.03933211,3275.7,3275.2,3.05317]
[1722367374722,0.03933211,3275.7,3275.2,6.10636]
[1722367374961,0.03933211,3275.7,3275.2,3.05317]
[1722367375573,3.09213211,3275.7,3275.0,3.05335]
[1722367375869,3.09213211,3275.7,3275.2,3.05322]
[1722367376785,3.09213211,3275.7,3275.0,3.05335]
[1722367377067,3.05295,3275.6,3275.0,3.05341]
[1722367377220,4.00660732,3275.7,3275.0,3.05341]
[1722367377421,0.03977768,3275.5,3275.0,3.05341]
[1722367377657,3.09275717,3275.6,3275.0,3.05337]
[1722367377863,0.03971818,3275.4,3275.1,3.05333]
[1722367378190,0.03965868,3275.3,3275.1,3.05333]
[1722367378359,6.05278,3275.8,3275.1,3.05333]
[1722367378670,0.03959918,3275.2,3275.1,3.05333]
[1722367378874,6.05278,3275.8,3275.2,3.05323]
[1722367379229,3.05278,3275.7,3275.1,3.05333]
[1722367380233,3.05278,3275.7,3275.2,3.05324]
[1722367380477,3.05278,3275.7,3275.1,3.05334]
[1722367381282,6.05275,3275.8,3275.1,3.05328]
[1722367381458,6.05275,3275.8,3275.3,3.05315]
[1722367382254,0.03977809,3275.7,3275.3,3.05315]
[1722367382654,6.05275,3275.8,3275.3,3.05315]
[1722367383104,0.03820894,3275.7,3275.3,3.05315]
[1722367383470,6.05275,3275.8,3275.3,3.05315]
[1722367383662,6.05275,3275.8,3275.2,3.05324]
[1722367383863,6.05275,3275.8,3275.3,3.05312]
[1722367383864,3.0,3275.8,3275.3,3.05312]
[1722367384406,0.03835719,3275.7,3275.3,3.05312]
[1722367384564,6.05274,3275.8,3275.3,3.05312]
[1722367384768,0.0382977,3275.6,3275.3,3.05312]
[1722367385102,6.05274,3275.8,3275.3,3.05312]
[1722367385605,0.03835719,3275.7,3275.4,3.05306]
[1722367385903,6.05261,3275.9,3275.4,3.05306]
[1722367386106,0.0382977,3275.6,3275.3,3.05315]
[1722367386413,0.03823821,3275.5,3275.3,3.05315]
[1722367386619,12.48,3276.4,3275.5,3.05292]
[1722367386759,2.3772,3276.5,3275.9,3.05253]
[1722367386958,5.42924,3276.5,3276.0,0.305253]
[1722367387276,2.3772,3276.5,3275.5,37.578]
[1722367387601,2.3772,3276.5,3276.2,3.05223]
[1722367387816,2.3772,3276.5,3276.0,6.10487]
[1722367387956,2.3772,3276.5,3276.0,3.05242]
[1722367388323,2.3772,3276.5,3276.1,3.05235]
[1722367388468,2.3772,3276.5,3276.1,3.662827]
[1722367388814,2.3772,3276.5,3276.2,3.05231]
[1722367389465,3.05177,3276.8,3276.2,3.05231]
[1722367390221,1.222854,3279.4,3275.6,5.86445]
[1722367390222,19.87,3277.7,3277.3,3.05128]
[1722367390434,2.2657,3277.9,3277.3,3.05128]
[1722367390435,2.2657,3277.9,3277.5,3.0511]
[1722367390723,2.2657,3277.9,3277.3,0.305128]
[1722367390868,2.2657,3277.9,3277.0,3.05156]
[1722367390869,5.31651,3277.9,3277.2,3.05136]
[1722367391610,3.05082,3277.8,3277.1,3.05146]
[1722367392175,3.05092,3277.7,3276.9,3.05166]
[1722367392376,3.05092,3277.7,3276.6,3.05192]
[1722367392377,0.531662,3277.7,3276.6,3.05192]
[1722367392590,3.05104,3277.6,3276.7,3.05184]
[1722367392827,3.05104,3277.6,3277.0,3.05156]
[1722367393131,3.0512,3277.4,3276.7,3.05184]
[1722367393287,3.05104,3277.6,3276.8,3.05175]
[1722367393471,3.05085,3277.8,3276.8,3.356925]
[1722367393670,3.0511,3277.5,3276.8,3.356925]
[1722367393871,3.08658177,3277.7,3276.9,3.05165]
[1722367394213,3.05085,3277.8,3276.9,3.05165]
[1722367394371,0.03556234,3277.6,3276.9,3.6925165]
[1722367394715,2.2657,3278.8,3277.2,2.578]
[1722367395018,2.2657,3278.8,3278.0,3.05055]
[1722367395019,0.03360396,3278.7,3278.0,3.05055]
[1722367395231,0.03360396,3278.7,3278.1,0.305055]
[1722367395232,3.08360396,3278.7,3278.1,0.305055]
[1722367395388,2.2657,3278.8,3278.1,0.305055]
[1722367395715,2.2657,3278.8,3277.7,2.578]
[1722367395716,0.03067705,3278.6,3278.2,3.0504]
[1722367395964,2.2657,3278.8,3278.0,3.05061]
[1722367396266,0.03061764,3278.5,3277.7,3.05091]
[1722367396395,2.2657,3278.8,3277.9,3.05066]
[1722367396595,0.03052865,3278.4,3277.9,3.05066]
[1722367396796,3.05005,3278.7,3277.9,0.610157]
[1722367397000,0.03036383,3278.3,3277.5,35.0]
[1722367397199,2.2657,3278.8,3277.5,35.0]
[1722367397200,3.05046,3278.2,3277.5,35.0]
[1722367397442,3.05026,3278.4,3277.6,6.10002288]
[1722367397648,0.03021543,3278.1,3277.6,3.04901288]
[1722367397799,3.05046,3278.2,3277.6,3.04901288]
[1722367398164,3.05056,3278.1,3277.6,3.04901288]
[1722367398295,3.05056,3278.1,3277.5,35.0]
[1722367398633,3.05056,3278.1,3276.5,5.0489]
[1722367398634,3.05078,3277.9,3276.5,5.0489]
[1722367398834,3.05078,3277.9,3277.2,3.05135]
[1722367399003,0.03036694,3277.8,3277.2,3.05135]
[1722367399355,7.39,3278.1,3277.7,3.05084]
[1722367399539,3.05027,3278.4,3277.7,3.05083]
[1722367399709,0.03037399,3277.7,3277.5,3.05105]
[1722367399901,3.05052,3278.2,3277.5,3.05105]
[1722367400225,3.08150841,3278.1,3277.4,3.05118]
[1722367400399,0.03096841,3278.1,3277.6,3.051]
[1722367400603,6.05021,3278.5,3277.7,3.0509]
[1722367400831,0.03061327,3278.0,3277.7,3.0509]
[1722367401014,3.05027,3278.4,3277.7,3.0509]
[1722367401231,3.05027,3278.4,3277.5,3.0511]
[1722367401232,0.03058879,3277.9,3277.5,3.0511]
[1722367401400,0.605027,3278.4,3277.6,3.05099]
[1722367401600,0.03052938,3277.8,3277.7,3.0509]
[1722367401810,6.05024,3278.5,3277.8,3.0508]
[1722367402050,6.05024,3278.5,3277.6,3.05093]
[1722367402051,0.03052938,3277.8,3277.6,3.05093]
[1722367402240,3.0,3278.5,3277.9,3.05072]
[1722367402441,6.05023,3278.5,3277.8,3.05081]
[1722367402646,3.0,3278.5,3277.9,3.05071]
[1722367402946,6.05014,3278.6,3277.9,3.05071]
[1722367403864,7.39,3278.7,3278.2,3.0504]
[1722367404070,7.39,3278.7,3278.2,3.05045]
[1722367404526,7.39,3278.7,3278.3,3.05027]
[1722367406227,7.39,3278.7,3278.1,3.05048]
[1722367406464,7.21973338,3278.7,3278.1,3.05054]
[1722367406680,3.05012,3278.6,3278.0,3.05062]
[1722367406830,7.21973338,3278.7,3278.1,3.60047]
[1722367407026,2.3535,3279.8,3278.6,2.578]
[1722367407227,3.04943,3279.3,3278.7,35.61098733]
[1722367407453,3.04972,3279.0,3278.7,35.0]
[1722367407652,3.04952,3279.2,3278.7,35.0]
[1722367407872,0.02809154,3278.9,3278.7,35.0]
[1722367408089,3.04977,3279.0,3278.7,35.0]
[1722367408246,3.04955,3279.2,3278.7,35.0]
[1722367408423,0.02841176,3278.9,3278.7,35.0]
[1722367408632,3.04974,3279.0,3278.7,35.0]
[1722367408830,0.02838194,3278.8,3278.7,35.0]
[1722367409029,3.04962,3279.1,3278.7,35.0]
[1722367409284,3.04936,3279.4,3278.7,35.0]
[1722367409285,0.02838194,3278.8,3278.7,35.0]
[1722367409568,3.04954,3279.2,3278.7,38.04901288]
[1722367409772,0.02844644,3278.8,3278.7,38.04901288]
[1722367410142,3.04954,3279.2,3278.7,3.04901288]
[1722367410351,3.04971,3279.0,3278.3,3.05034]
[1722367410550,0.02825468,3278.9,3278.4,0.55]
[1722367410732,3.04973,3279.0,3278.4,38.0502]
[1722367410949,10.26884338,3279.7,3278.3,0.55]
[1722367410950,0.02837287,3278.9,3278.3,0.55]
[1722367411266,3.04987,3278.9,3278.2,3.60045]
[1722367411466,0.02846123,3278.8,3278.3,0.360045]
[1722367411897,3.04987,3278.9,3278.3,0.360045]
[1722367412721,0.02933147,3278.8,3278.3,0.360045]
[1722367413197,3.05008,3278.6,3278.0,0.44113628]
[1722367413515,2.2957,3279.0,3277.6,3.05097]
[1722367413516,3.05035,3278.4,3277.6,3.05097]
[1722367413674,3.05035,3278.4,3277.5,3.05103]
[1722367413675,3.05035,3278.4,3277.7,3.05089]
[1722367413861,0.02887565,3278.3,3277.7,6.10172]
[1722367414061,0.02887565,3278.3,3277.7,3.05083]
[1722367414262,3.05035,3278.4,3277.7,3.05083]
[1722367414659,0.02887565,3278.3,3277.8,3.355903]
[1722367414821,0.02887565,3278.3,3277.8,0.305083]
[1722367415668,0.02887565,3278.3,3277.9,2.578]
[1722367415870,3.04971,3279.0,3278.4,3.05023]
[1722367416086,7.21973338,3279.1,3278.5,0.305023]
[1722367416316,3.07869857,3278.9,3278.2,3.05042]
[1722367416615,0.02895158,3278.8,3278.4,3.05024]
[1722367416766,10.26936338,3279.1,3278.4,3.05024]
[1722367416968,0.02888795,3278.7,3278.6,3.05004]
[1722367417167,7.21973338,3279.1,3278.6,3.05004]
[1722367417404,0.02897434,3278.7,3278.5,35.36612369]
[1722367417620,10.26936338,3279.1,3278.6,3.04901288]
[1722367417914,3.04963,3279.1,3278.6,3.04901288]
[1722367418572,3.04947,3279.3,3278.6,6.09909288]
[1722367418895,6.04925,3279.5,3278.8,3.04989]
[1722367419063,3.04935,3279.4,3278.8,3.04989]
[1722367419268,3.04935,3279.4,3278.8,3.96478829]
[1722367419511,2.2957,3279.8,3279.2,3.04944]
[1722367419719,7.21973338,3280.1,3279.6,3.04909]
[1722367419895,3.04865,3280.2,3279.6,3.04909]
[1722367420305,3.04865,3280.2,3279.5,38.04923]
[1722367420481,2.2957,3280.3,3279.6,6.15913188]
[1722367420818,10.26804338,3280.5,3279.9,3.04881]
[1722367421021,7.21973338,3280.5,3280.0,3.0487]
[1722367421318,7.21973338,3280.5,3279.9,0.06097197]
[1722367421472,7.21973338,3280.5,3280.1,3.04867]
[1722367421671,7.21973338,3280.5,3279.9,0.06097197]
[1722367421672,10.26805338,3280.5,3279.9,3.04886]
[1722367421981,7.21973338,3280.5,3280.0,0.55]
[1722367422189,7.21973338,3280.5,3280.1,3.04862]
[1722367422390,7.21973338,3280.5,3280.2,0.06096795]
[1722367422597,7.21973338,3280.5,3280.3,3.04849]
[1722367422790,3.04795,3280.9,3280.3,3.04849]
[1722367423216,3.04795,3280.9,3280.2,0.06096795]
[1722367423434,3.04795,3280.9,3280.2,3.10949795]
[1722367423606,3.04836,3280.5,3279.9,3.04882]
[1722367423803,3.04836,3280.5,3279.8,3.0489]
[1722367423977,3.04815,3280.7,3279.9,0.55]
[1722367424181,3.04832,3280.5,3279.9,0.55]
[1722367424416,3.04832,3280.5,3280.0,35.0]
[1722367424579,5.578,3281.2,3280.0,38.04901288]
[1722367424798,3.04818,3280.7,3280.1,3.10962971]
[1722367425377,3.04788,3281.0,3280.4,3.04836]
[1722367425695,3.04794,3280.9,3280.5,0.55]
[1722367425903,3.04775,3281.2,3280.4,3.5984]
[1722367426291,2.578,3281.4,3280.5,35.0]
[1722367426489,6.09644,3280.6,3280.5,35.0]
[1722367427689,3.04838,3280.5,3279.7,3.04899]
[1722367427892,3.04808,3280.8,3279.9,3.0488]
[1722367428118,3.04827,3280.6,3280.0,38.95862]
[1722367428325,7.21973338,3280.9,3280.2,3.04853]
[1722367428326,10.26773338,3280.9,3280.2,3.04853]
[1722367428529,7.21973338,3280.9,3280.4,3.0484]
[1722367428694,3.04804,3280.8,3280.2,3.04852]
[1722367428882,3.04804,3280.8,3280.2,3.04901288]
[1722367428883,3.04823,3280.6,3280.2,3.04901288]
[1722367429983,3.04832,3280.5,3280.2,3.04901288]
[1722367430220,3.0485,3280.3,3280.0,35.35988]
[1722367430414,3.04855,3280.3,3280.0,35.0]
[1722367430685,3.0485,3280.3,3280.0,35.0]
[1722367431092,3.04842,3280.4,3280.0,35.0]
[1722367431718,3.04858,3280.3,3280.0,35.0]
[1722367431927,6.09676,3280.5,3280.0,35.0]
[1722367432122,3.04841,3280.4,3280.0,35.0]
[1722367432633,3.0485,3280.3,3280.0,35.0]
[1722367432791,3.0484,3280.5,3280.0,35.0]
[1722367432992,10.52550338,3280.9,3280.0,35.0]
[1722367432993,3.04852,3280.3,3280.0,35.0]
[1722367433325,6.09736,3280.1,3280.0,35.0]
[1722367433562,2.4885,3280.4,3279.1,2.73]
[1722367433563,3.04909,3279.7,3279.1,2.73]
[1722367433759,3.04909,3279.7,3279.1,5.77961]
[1722367434054,3.04876,3280.1,3279.2,35.0]
[1722367434470,10.26828338,3280.3,3279.6,3.04909]
[1722367434471,3.04864,3280.2,3279.6,3.04909]
[1722367434634,3.04864,3280.2,3279.5,6.09841]
[1722367434820,3.04864,3280.2,3279.7,3.04903]
[1722367435017,3.04864,3280.2,3279.6,0.61097343]
[1722367435018,7.21973338,3280.3,3279.8,35.0]
[1722367435270,3.04884,3280.0,3279.8,35.0]
[1722367435476,3.04864,3280.2,3279.8,35.0]
[1722367435621,3.04875,3280.1,3279.8,35.0]
[1722367436255,3.04875,3280.1,3279.6,3.04914]
[1722367436561,3.04875,3280.1,3279.6,38.04914]
[1722367436947,3.04875,3280.1,3279.6,35.0]
[1722367438093,3.04875,3280.1,3279.6,41.09815288]
[1722367438392,3.04883,3280.0,3279.6,38.04901288]
[1722367438877,3.04887,3279.9,3279.6,35.0]
[1722367439080,5.53694,3280.4,3279.1,2.73]
[1722367439300,3.04923,3279.6,3278.9,6.09947]
[1722367439450,3.04923,3279.6,3279.1,3.0496]
[1722367439750,3.04924,3279.5,3279.0,35.0]
[1722367439953,7.21973338,3280.1,3279.0,35.0]
[1722367439954,3.04914,3279.7,3279.0,35.0]
[1722367440190,3.04916,3279.6,3279.0,35.0]
[1722367440352,3.04925,3279.5,3279.1,3.04901288]
[1722367441018,5.46937,3279.6,3279.0,35.0]
[1722367441167,3.04925,3279.5,3279.0,35.0]
[1722367441758,3.04957,3279.2,3279.0,35.0]
[1722367442003,3.04924,3279.5,3278.3,3.05033]
[1722367442163,3.04958,3279.2,3278.3,3.38093]
[1722367442363,3.04985,3278.9,3278.3,3.38093]
[1722367442606,3.04963,3279.1,3278.4,38.05026]
[1722367442911,3.0493,3279.5,3278.7,3.0499]
[1722367443070,3.04943,3279.3,3278.8,3.04983]
[1722367443405,3.04934,3279.4,3278.8,6.709655]
[1722367443615,3.0493,3279.5,3278.9,35.0]
[1722367443777,3.0493,3279.5,3278.9,38.04979]
[1722367443778,3.04939,3279.4,3278.9,38.04979]
[1722367443966,10.26883338,3279.7,3278.9,38.04971]
[1722367444306,3.0493,3279.5,3279.0,3.04901288]
[1722367444849,3.04948,3279.3,3278.9,35.0]
[1722367445202,3.04962,3279.1,3278.9,35.0]
[1722367445425,3.04971,3279.0,3278.4,3.388353]
[1722367445647,3.04962,3279.1,3278.4,0.338093]
[1722367445648,3.04999,3278.7,3278.4,0.338093]
[1722367445946,3.04999,3278.7,3278.4,35.0]
[1722367446248,3.05008,3278.6,3278.4,35.0]
[1722367446540,3.04999,3278.7,3278.4,35.0]
[1722367446541,3.05002,3278.7,3278.4,35.0]
[1722367447429,3.05008,3278.6,3278.4,35.0]
[1722367448148,3.05001,3278.7,3277.6,7.35]
[1722367448302,3.05037,3278.3,3277.7,4.885608]
[1722367448640,3.05037,3278.3,3277.8,35.0]
[1722367448844,3.05037,3278.3,3277.9,0.55]
[1722367449051,3.05046,3278.2,3277.8,35.0]
[1722367449254,3.05037,3278.3,3277.8,38.04901288]
[1722367449400,3.04948,3279.3,3278.5,3.05012]
[1722367449610,3.04938,3279.4,3278.6,3.05006]
[1722367449910,3.04938,3279.4,3278.0,2.4126]
[1722367449911,3.04957,3279.2,3278.0,2.4126]
[1722367450134,3.04957,3279.2,3278.6,3.05007]
[1722367450303,3.04957,3279.2,3278.4,3.05022]
[1722367450502,3.04957,3279.2,3278.6,3.05]
[1722367450759,3.04904,3279.8,3279.2,3.0495]
[1722367450901,3.04904,3279.8,3278.7,0.06099792]
[1722367450902,3.04904,3279.8,3279.3,0.30495]
[1722367451230,3.04901,3279.8,3279.4,35.0]
[1722367451732,3.04902,3279.8,3279.3,0.30495]
[1722367451894,3.04888,3279.9,3279.3,0.30495]
[1722367452100,3.04888,3279.9,3279.3,38.35437]
[1722367452404,3.04871,3280.1,3279.5,3.04918]
[1722367452961,3.04883,3280.0,3279.4,3.04901288]
[1722367453161,7.21973338,3280.2,3279.3,38.35431]
[1722367453162,3.04913,3279.7,3279.3,35.30495]
[1722367453504,7.21973338,3280.2,3278.3,9.7626]
[1722367453505,3.04939,3279.4,3278.8,3.04989]
[1722367453920,3.04939,3279.4,3278.9,35.0]
[1722367454383,3.0494,3279.4,3278.9,35.0]
[1722367454565,3.04915,3279.6,3278.9,35.0]
[1722367454566,3.04925,3279.5,3278.9,35.0]
[1722367454775,3.04925,3279.5,3279.0,1.78793948]
[1722367455169,3.04899,3279.8,3279.0,1.78793948]
[1722367455384,3.04908,3279.7,3279.1,3.04955]
[1722367455921,3.04922,3279.6,3279.0,1.78793948]
[1722367456125,2.4323,3280.1,3278.9,35.0]
[1722367456126,3.04932,3279.5,3278.9,35.0]
[1722367456325,3.04949,3279.3,3278.9,35.0]
[1722367456474,3.04969,3279.1,3278.3,6.10061]
[1722367456679,3.04982,3278.9,3278.1,3.29174]
[1722367456916,3.05016,3278.6,3278.2,35.602174]
[1722367457223,3.04999,3278.7,3277.3,2.4976]
[1722367457224,3.0506,3278.1,3277.3,2.4976]
[1722367457526,3.05045,3278.2,3277.6,3.051]
[1722367457710,3.05036,3278.3,3277.5,38.05108]
[1722367457876,7.21973338,3278.4,3277.7,3.05083]
[1722367458077,7.21973338,3278.4,3277.9,3.0507]
[1722367458320,7.21973338,3278.4,3277.9,3.05066]
[1722367458522,7.21973338,3278.4,3278.0,0.06100679]
[1722367458729,7.21973338,3278.4,3278.2,3.05043]
[1722367458883,9.09952,3279.0,3278.2,3.36157368]
[1722367459081,6.04974,3279.0,3278.2,3.36157368]
[1722367459535,2.4324,3279.1,3278.3,3.0503]
[1722367459536,3.0498,3278.9,3278.3,3.0503]
[1722367459683,7.21973338,3279.2,3278.6,3.05003]
[1722367459684,10.26929338,3279.2,3278.6,3.05003]
[1722367459886,10.26929338,3279.2,3278.6,3.66615734]
[1722367459887,6.09916,3279.2,3278.6,3.66615734]
[1722367460089,3.04956,3279.2,3278.6,3.66615734]
[1722367460317,3.04953,3279.2,3278.7,35.0]
[1722367460989,3.04976,3279.0,3278.7,35.0]
[1722367461735,3.04957,3279.2,3278.7,35.0]
[1722367461890,3.04957,3279.2,3278.8,1.52775664]
[1722367462285,3.04996,3278.8,3278.1,3.05049]
[1722367462518,3.05,3278.7,3278.2,35.0]
[1722367462733,3.04985,3278.9,3278.2,35.0]
[1722367462914,3.04999,3278.7,3278.2,35.0]
[1722367463103,3.0501,3278.6,3278.2,35.0]
[1722367463305,3.04999,3278.7,3278.2,35.0]
[1722367463629,3.05007,3278.7,3278.2,37.91195819]
[1722367463956,3.05028,3278.4,3278.2,37.91195819]
[1722367464161,3.05028,3278.4,3278.2,35.0]
[1722367464337,3.05032,3278.4,3277.7,3.05091]
[1722367464537,3.05017,3278.5,3277.8,3.05082]
[1722367464710,3.05032,3278.4,3277.9,35.0]
[1722367464910,3.05037,3278.3,3277.9,36.92866902]
[1722367465158,3.05045,3278.2,3277.9,35.0]
[1722367465529,3.05032,3278.4,3277.9,35.0]
[1722367466352,3.05003,3278.7,3278.0,3.11156635]
[1722367466565,3.04994,3278.8,3278.2,3.0504]
[1722367466854,3.0,3279.0,3278.2,3.660508]
[1722367467066,3.04986,3278.9,3278.2,3.05041]
[1722367467206,3.05,3278.7,3277.9,35.0]
[1722367467413,3.05009,3278.6,3278.1,3.05054]
[1722367467649,10.26929338,3279.2,3278.1,3.05054]
[1722367467650,3.04985,3278.9,3278.2,0.305054]
[1722367467948,3.04996,3278.8,3278.2,3.355494]
[1722367468256,3.04996,3278.8,3278.3,3.05035]
[1722367468757,3.04996,3278.8,3278.2,0.305054]
[1722367468910,3.04996,3278.8,3278.3,0.3355514]
[1722367469110,3.04985,3278.9,3278.3,3.44685033]
[1722367469306,3.04974,3279.0,3278.4,3.05025]
[1722367469525,3.04974,3279.0,3278.4,3.1112489]
[1722367469723,3.04974,3279.0,3278.5,0.64971003]
[1722367469921,7.21973338,3279.2,3278.6,3.11106888]
[1722367470236,3.04972,3279.0,3278.6,0.06099888]
[1722367470611,3.04953,3279.2,3278.6,0.06099888]
[1722367470816,3.04953,3279.2,3278.7,0.37608689]
[1722367471020,3.04977,3279.0,3278.7,0.37608689]
[1722367471256,3.04978,3279.0,3278.8,35.0]
[1722367472082,3.04976,3279.0,3278.8,35.0]
[1722367473050,6.09955,3279.0,3278.8,35.0]
[1722367473247,3.04976,3279.0,3278.8,35.0]
[1722367473514,3.0498,3278.9,3278.4,3.05025]
[1722367473715,3.04969,3279.1,3278.5,3.38870014]
[1722367473993,10.26881338,3279.7,3278.6,38.11105439]
[1722367473994,3.04938,3279.4,3278.6,38.11105439]
[1722367474151,3.04958,3279.2,3278.7,3.04901288]
[1722367474351,6.09918,3279.2,3278.7,3.04901288]
[1722367474552,6.09918,3279.2,3278.8,0.06099439]
[1722367474553,3.04958,3279.2,3278.8,0.06099439]
[1722367475115,3.04958,3279.2,3278.9,35.0]
[1722367476805,3.04983,3278.9,3278.5,0.33858014]
[1722367477012,3.04983,3278.9,3278.0,3.05062]
[1722367477013,6.09973,3278.9,3278.0,3.05062]
[1722367477311,6.09973,3278.9,3277.9,2.3288]
[1722367477312,2.3764,3279.4,3277.9,35.0]
[1722367477471,3.05041,3278.3,3277.9,35.0]
[1722367478186,3.0502,3278.5,3277.9,35.0]
[1722367478506,3.05013,3278.6,3278.1,3.05047]
[1722367478653,6.10027,3278.6,3277.9,38.05065]
[1722367478855,3.05015,3278.6,3278.0,6.09964288]
[1722367479055,3.05028,3278.4,3278.0,3.04901288]
[1722367479321,3.05036,3278.3,3278.0,3.04901288]
[1722367479455,3.05028,3278.4,3278.0,3.04901288]
[1722367479456,6.10061,3278.4,3278.0,3.04901288]
[1722367479657,3.05028,3278.4,3278.0,3.04901288]
[1722367480507,3.05045,3278.3,3277.9,35.0]
[1722367481311,3.05046,3278.2,3277.9,35.0]
[1722367481513,3.05055,3278.1,3277.9,35.0]
[1722367481719,6.10124,3278.1,3277.4,5.44483]
[1722367481899,3.05062,3278.1,3277.4,5.44483]
[1722367482061,3.05062,3278.1,3277.5,35.0]
[1722367482442,3.05064,3278.0,3277.5,35.0]
[1722367482979,3.05078,3277.9,3277.5,35.0]
[1722367483204,3.05088,3277.8,3277.5,35.0]
[1722367483409,3.05066,3278.0,3276.9,2.73]
[1722367483410,2.4404,3277.9,3276.9,2.73]
[1722367483607,3.05101,3277.6,3276.9,5.78159]
[1722367483915,3.05101,3277.6,3277.0,38.629729]
[1722367483916,3.05107,3277.6,3277.0,38.629729]
[1722367484068,3.05107,3277.6,3277.0,38.629659]
[1722367484269,3.05087,3277.8,3277.2,3.05131]
[1722367484608,3.05081,3277.9,3277.3,3.05128]
[1722367484807,3.05081,3277.9,3277.2,6.1613456]
[1722367484808,3.05081,3277.9,3277.4,3.05119]
[1722367485013,3.05088,3277.8,3277.3,35.0]
[1722367485518,3.05078,3277.9,3277.3,38.05121]
[1722367485813,3.05089,3277.8,3277.3,35.0]
[1722367485982,3.05069,3278.0,3277.3,3.04901288]
[1722367486181,3.05069,3278.0,3277.3,3.0512]
[1722367486608,12.54303338,3278.3,3277.2,38.05136]
[1722367486779,3.05091,3277.8,3277.2,38.05136]
[1722367487114,3.0509,3277.8,3277.2,38.05136]
[1722367487422,3.05083,3277.8,3277.2,35.0]
[1722367487598,15.59341338,3278.3,3277.3,3.05128]
[1722367487915,15.59341338,3278.3,3277.2,38.05137]
[1722367487916,3.05087,3277.8,3277.2,35.0]
[1722367488113,3.05092,3277.7,3277.2,38.05137]
[1722367488322,3.05092,3277.7,3277.2,35.0]
[1722367488464,3.05045,3278.2,3277.2,35.0]
[1722367488683,3.05102,3277.6,3277.2,35.0]
[1722367489367,0.886164,3278.1,3277.2,35.0]
[1722367489368,3.05124,3277.4,3277.2,35.0]
[1722367489575,3.05124,3277.4,3276.8,3.05168]
[1722367489979,3.05124,3277.4,3276.9,35.0]
[1722367490289,3.05124,3277.4,3277.0,0.71461757]
[1722367490503,3.05124,3277.4,3276.7,3.05183]
[1722367490679,3.05143,3277.2,3276.7,3.05183]
[1722367490878,3.05143,3277.2,3276.8,35.0]
[1722367492481,3.05173,3276.9,3276.0,5.45203]
[1722367492686,3.05191,3276.7,3276.1,3.597603]
[1722367492884,3.05191,3276.7,3276.2,35.0]
[1722367493127,3.05218,3276.4,3276.1,0.545203]
[1722367493292,3.05218,3276.4,3275.7,3.05269]
[1722367493628,6.10403,3276.6,3275.9,3.05257]
[1722367493856,3.052,3276.6,3275.9,3.05257]
[1722367494161,3.052,3276.6,3275.8,3.05263]
[1722367494459,3.0518,3276.8,3276.1,3.0524]
[1722367494662,3.0518,3276.8,3276.3,3.05222]
[1722367494962,3.0518,3276.8,3276.2,3.35754]
[1722367495253,3.0518,3276.8,3276.3,3.05221]
[1722367495565,2.3965,3277.3,3276.5,3.05203]
[1722367495716,3.05165,3277.0,3276.3,3.05221]
[1722367495915,3.05177,3276.8,3276.3,3.05221]
[1722367496534,3.05164,3277.0,3276.3,3.05216]
[1722367496811,3.05167,3276.9,3276.3,3.05216]
[1722367497049,3.05177,3276.8,3276.3,3.05216]
[1722367497230,3.05177,3276.8,3276.3,6.10117288]
[1722367497939,6.10328,3277.0,3276.3,6.10117288]
[1722367498106,3.05164,3277.0,3276.5,3.05203]
[1722367498628,3.05167,3276.9,3276.3,6.10117288]
[1722367498826,3.05167,3276.9,3276.3,6.10116288]
[1722367499412,3.05157,3277.0,3276.3,6.10116288]
[1722367499761,3.05171,3276.9,3276.3,6.10116288]